[Event "*** Titled Tuesday Blitz"]
[Site "Chess.com"]
[Date "2020.05.19"]
[Round "6"]
[White "UCantHandleDenker"]
[Black "rynos0411"]
[Result "0-1"]
[WhiteElo "2547"]
[BlackElo "2352"]
[TimeControl "180+1"]
[EndTime "13:10:12 PDT"]
[Termination "rynos0411 won by checkmate"]

1. Nf3 {[%clk 0:03:00.9]} 1... Nf6 {[%clk 0:02:58.8]} 2. c4 {[%clk 0:03:00.3]}
2... e6 {[%clk 0:02:54.5]} 3. g3 {[%clk 0:02:59.8]} 3... d5 {[%clk 0:02:52.9]}
4. b3 {[%clk 0:02:59.8]} 4... Be7 {[%clk 0:02:49.8]} 5. Bg2 {[%clk 0:02:59.7]}
5... O-O {[%clk 0:02:47.1]} 6. O-O {[%clk 0:02:59.6]} 6... a5 {[%clk 0:02:46.8]}
7. Bb2 {[%clk 0:02:57.2]} 7... a4 {[%clk 0:02:44.1]} 8. Na3 {[%clk 0:02:56.9]}
8... c6 {[%clk 0:02:39.1]} 9. d3 {[%clk 0:02:45]} 9... Nbd7 {[%clk 0:02:36.9]}
10. Nc2 {[%clk 0:02:43.4]} 10... b5 {[%clk 0:02:33.1]} 11. cxb5 {[%clk
0:02:34.4]} 11... cxb5 {[%clk 0:02:32.8]} 12. b4 {[%clk 0:02:33.7]} 12... Bb7
{[%clk 0:02:26.8]} 13. a3 {[%clk 0:02:33.2]} 13... Rc8 {[%clk 0:02:25.9]} 14.
Rc1 {[%clk 0:02:28.4]} 14... Qb6 {[%clk 0:02:22.1]} 15. Qd2 {[%clk 0:02:21.7]}
15... Rc7 {[%clk 0:02:18.8]} 16. Bd4 {[%clk 0:02:20.8]} 16... Qd6 {[%clk
0:02:12.7]} 17. Ne3 {[%clk 0:02:18.4]} 17... Rfc8 {[%clk 0:02:08.5]} 18. Rxc7
{[%clk 0:02:03.8]} 18... Rxc7 {[%clk 0:02:07.1]} 19. Qb2 {[%clk 0:01:59.5]}
19... Ne8 {[%clk 0:01:54.6]} 20. Bh3 {[%clk 0:01:46.1]} 20... Bf6 {[%clk
0:01:52.3]} 21. Bxf6 {[%clk 0:01:33.1]} 21... Nexf6 {[%clk 0:01:50.4]} 22. Rc1
{[%clk 0:01:28.3]} 22... h6 {[%clk 0:01:46.4]} 23. Nd4 {[%clk 0:01:21.9]} 23...
Rxc1+ {[%clk 0:01:17.4]} 24. Qxc1 {[%clk 0:01:21.6]} 24... Qb6 {[%clk
0:01:18.3]} 25. Qb2 {[%clk 0:01:11.7]} 25... e5 {[%clk 0:01:05]} 26. Ndf5 {[%clk
0:01:08.9]} 26... d4 {[%clk 0:01:03.9]} 27. Nd1 {[%clk 0:01:01]} 27... Nf8
{[%clk 0:00:59.8]} 28. Bg2 {[%clk 0:00:52.9]} 28... Bxg2 {[%clk 0:00:53.7]} 29.
Kxg2 {[%clk 0:00:53.8]} 29... Qe6 {[%clk 0:00:53.6]} 30. Nh4 {[%clk 0:00:50.7]}
30... N8d7 {[%clk 0:00:46.5]} 31. Nf3 {[%clk 0:00:43]} 31... g5 {[%clk
0:00:42.4]} 32. e3 {[%clk 0:00:41.6]} 32... Qd5 {[%clk 0:00:30.3]} 33. e4 {[%clk
0:00:37.4]} 33... Qe6 {[%clk 0:00:30.1]} 34. Qc2 {[%clk 0:00:34.7]} 34... Ne8
{[%clk 0:00:23.7]} 35. h3 {[%clk 0:00:28.3]} 35... Nd6 {[%clk 0:00:22.9]} 36.
Nd2 {[%clk 0:00:26.2]} 36... f5 {[%clk 0:00:21.9]} 37. f3 {[%clk 0:00:25.8]}
37... h5 {[%clk 0:00:18.3]} 38. Nf2 {[%clk 0:00:24.6]} 38... Kf7 {[%clk
0:00:15.1]} 39. Qc6 {[%clk 0:00:24]} 39... Ke7 {[%clk 0:00:14.6]} 40. Qc7 {[%clk
0:00:22.8]} 40... f4 {[%clk 0:00:08.1]} 41. Nf1 {[%clk 0:00:16.6]} 41... Qa2
{[%clk 0:00:07]} 42. h4 {[%clk 0:00:14.6]} 42... gxh4 {[%clk 0:00:04.1]} 43.
gxf4 {[%clk 0:00:12.3]} 43... exf4 {[%clk 0:00:02.7]} 44. e5 {[%clk 0:00:11.1]}
44... Nf5 {[%clk 0:00:03]} 45. Qc6 {[%clk 0:00:09.6]} 45... Ne3+ {[%clk
0:00:03]} 46. Kg1 {[%clk 0:00:08.3]} 46... Qg8+ {[%clk 0:00:02.1]} 47. Ng4
{[%clk 0:00:05.4]} 47... hxg4 {[%clk 0:00:02.2]} 48. Qd6+ {[%clk 0:00:06.3]}
48... Ke8 {[%clk 0:00:02.2]} 49. e6 {[%clk 0:00:05.6]} 49... gxf3+ {[%clk
0:00:01.8]} 50. Ng3 {[%clk 0:00:05.9]} 50... Qxg3+ {[%clk 0:00:01.9]} 51. Kh1
{[%clk 0:00:06.5]} 51... Qg2# {[%clk 0:00:02.2]} 0-1

[Event "*** Titled Tuesday Blitz"]
[Site "Chess.com"]
[Date "2020.05.19"]
[Round "6"]
[White "PetrolulSah"]
[Black "sopo-tereladze"]
[Result "1-0"]
[WhiteElo "2190"]
[BlackElo "2313"]
[TimeControl "180+1"]
[EndTime "13:10:12 PDT"]
[Termination "PetrolulSah won by resignation"]

1. d4 {[%clk 0:02:53.8]} 1... Nf6 {[%clk 0:02:59.2]} 2. c4 {[%clk 0:02:53.3]}
2... e6 {[%clk 0:03:00.1]} 3. g3 {[%clk 0:02:52.2]} 3... Bb4+ {[%clk 0:02:58.7]}
4. Bd2 {[%clk 0:02:52.3]} 4... Qe7 {[%clk 0:02:57.6]} 5. Bg2 {[%clk 0:02:51.9]}
5... Bxd2+ {[%clk 0:02:56.8]} 6. Qxd2 {[%clk 0:02:51.1]} 6... d6 {[%clk
0:02:57.3]} 7. Nc3 {[%clk 0:02:51]} 7... Nc6 {[%clk 0:02:55.8]} 8. e4 {[%clk
0:02:49.9]} 8... e5 {[%clk 0:02:54.1]} 9. d5 {[%clk 0:02:49.5]} 9... Nd4 {[%clk
0:02:53.9]} 10. Nge2 {[%clk 0:02:49.7]} 10... Nxe2 {[%clk 0:02:53.2]} 11. Nxe2
{[%clk 0:02:43.8]} 11... h5 {[%clk 0:02:52]} 12. h4 {[%clk 0:02:35.8]} 12... Bg4
{[%clk 0:02:46.9]} 13. O-O {[%clk 0:02:30.7]} 13... Qd7 {[%clk 0:02:42.7]} 14.
f3 {[%clk 0:02:28.9]} 14... Bh3 {[%clk 0:02:41.5]} 15. Nc3 {[%clk 0:02:28.8]}
15... O-O {[%clk 0:02:20.2]} 16. Bxh3 {[%clk 0:02:26.3]} 16... Qxh3 {[%clk
0:02:18.9]} 17. Qg2 {[%clk 0:02:26.9]} 17... Qxg2+ {[%clk 0:02:15.6]} 18. Kxg2
{[%clk 0:02:27.8]} 18... a6 {[%clk 0:02:15.6]} 19. b4 {[%clk 0:02:26.6]} 19...
Nd7 {[%clk 0:02:14.4]} 20. g4 {[%clk 0:02:18.2]} 20... g6 {[%clk 0:02:11]} 21.
Kh3 {[%clk 0:02:14.4]} 21... Kh7 {[%clk 0:02:07.2]} 22. gxh5 {[%clk 0:02:11.4]}
22... gxh5 {[%clk 0:02:08.1]} 23. Rg1 {[%clk 0:02:11.5]} 23... Rg8 {[%clk
0:02:01.5]} 24. Rg5 {[%clk 0:02:11.1]} 24... Rxg5 {[%clk 0:01:53.8]} 25. hxg5
{[%clk 0:02:10.7]} 25... f6 {[%clk 0:01:48.5]} 26. Kh4 {[%clk 0:02:01.1]} 26...
Rg8 {[%clk 0:01:40.7]} 27. Rg1 {[%clk 0:01:47]} 27... fxg5+ {[%clk 0:01:35.5]}
28. Rxg5 {[%clk 0:01:46]} 28... Nf6 {[%clk 0:01:36.4]} 29. Rxg8 {[%clk
0:01:39.6]} 29... Kxg8 {[%clk 0:01:35.4]} 30. Kg5 {[%clk 0:01:39.7]} 30... Kf7
{[%clk 0:01:34.3]} 31. c5 {[%clk 0:01:35.4]} 31... Ke7 {[%clk 0:01:23.9]} 32.
cxd6+ {[%clk 0:01:27.6]} 32... cxd6 {[%clk 0:01:24.8]} 33. Ne2 {[%clk
0:01:27.5]} 33... b5 {[%clk 0:01:15.9]} 34. Ng3 {[%clk 0:01:24.8]} 34... Nd7
{[%clk 0:01:16]} 35. Nf5+ {[%clk 0:01:23.8]} 35... Kd8 {[%clk 0:01:13.1]} 36.
Nxd6 {[%clk 0:01:22]} 36... Nb6 {[%clk 0:01:11.5]} 37. Nb7+ {[%clk 0:01:21.9]}
37... Kc7 {[%clk 0:01:08]} 38. Nc5 {[%clk 0:01:21.9]} 38... Nc4 {[%clk
0:01:07.7]} 39. Nxa6+ {[%clk 0:01:19.9]} 39... Kb6 {[%clk 0:01:07.7]} 40. Nc5
{[%clk 0:01:16.4]} 40... Nd2 {[%clk 0:01:06.9]} 41. Nd7+ {[%clk 0:01:14.7]}
41... Kc7 {[%clk 0:01:04.8]} 42. Nxe5 {[%clk 0:01:14.5]} 42... Kd6 {[%clk
0:01:05.7]} 43. Nf7+ {[%clk 0:01:07.5]} 43... Ke7 {[%clk 0:01:04.3]} 44. Ne5
{[%clk 0:00:47.5]} 44... Kd6 {[%clk 0:00:57.4]} 45. Nd3 {[%clk 0:00:47.3]} 45...
Nxf3+ {[%clk 0:00:54.4]} 46. Kxh5 {[%clk 0:00:47.1]} 46... Nd2 {[%clk
0:00:52.2]} 47. Nc5 {[%clk 0:00:44.9]} 47... Nb1 {[%clk 0:00:46]} 48. Kg5 {[%clk
0:00:41]} 48... Ke5 {[%clk 0:00:45]} 49. Nd3+ {[%clk 0:00:33]} 49... Kd6 {[%clk
0:00:40]} 50. Kf5 {[%clk 0:00:27.7]} 50... Nc3 {[%clk 0:00:40.9]} 51. a3 {[%clk
0:00:26.8]} 51... Nb1 {[%clk 0:00:37.9]} 52. Nf4 {[%clk 0:00:26.4]} 52... Nxa3
{[%clk 0:00:36.9]} 53. e5+ {[%clk 0:00:26.5]} 53... Kd7 {[%clk 0:00:36.5]} 54.
e6+ {[%clk 0:00:25.6]} 54... Kd6 {[%clk 0:00:36.4]} 55. Kf6 {[%clk 0:00:24.8]}
55... Nc4 {[%clk 0:00:34.7]} 56. e7 {[%clk 0:00:24.3]} 56... Kd7 {[%clk
0:00:34.5]} 57. Kf7 {[%clk 0:00:21.2]} 57... Nd6+ {[%clk 0:00:33.2]} 58. Kf8
{[%clk 0:00:20.9]} 58... Ne8 {[%clk 0:00:32.2]} 59. Ne6 {[%clk 0:00:17.8]} 59...
Nf6 {[%clk 0:00:31.4]} 60. Nc5+ {[%clk 0:00:16.8]} 60... Kd6 {[%clk 0:00:30.1]}
61. e8=Q {[%clk 0:00:15.5]} 61... Nxe8 {[%clk 0:00:28.5]} 62. Kxe8 {[%clk
0:00:15.4]} 62... Kxd5 {[%clk 0:00:29.4]} 63. Kd7 {[%clk 0:00:13]} 63... Kc4
{[%clk 0:00:28.7]} 64. Na6 {[%clk 0:00:13]} 64... Kd5 {[%clk 0:00:28.6]} 65. Kc7
{[%clk 0:00:13]} 1-0

[Event "*** Titled Tuesday Blitz"]
[Site "Chess.com"]
[Date "2020.05.19"]
[Round "6"]
[White "Leonid_Starozhilov"]
[Black "manmanlai1"]
[Result "1-0"]
[WhiteElo "2637"]
[BlackElo "2353"]
[TimeControl "180+1"]
[EndTime "13:10:13 PDT"]
[Termination "Leonid_Starozhilov won by resignation"]

1. b3 {[%clk 0:03:00.9]} 1... e5 {[%clk 0:02:58.1]} 2. Bb2 {[%clk 0:03:00.5]}
2... Nc6 {[%clk 0:02:57.8]} 3. e3 {[%clk 0:02:59.4]} 3... Nf6 {[%clk 0:02:53.8]}
4. Bb5 {[%clk 0:03:00.3]} 4... Bd6 {[%clk 0:02:52.4]} 5. Ne2 {[%clk 0:03:00.4]}
5... O-O {[%clk 0:02:50.8]} 6. Bxc6 {[%clk 0:02:59]} 6... dxc6 {[%clk
0:02:48.7]} 7. Nbc3 {[%clk 0:02:59.2]} 7... Re8 {[%clk 0:02:47.4]} 8. e4 {[%clk
0:02:59.1]} 8... c5 {[%clk 0:02:40.5]} 9. d3 {[%clk 0:02:57.5]} 9... Nd7 {[%clk
0:02:37]} 10. Ng3 {[%clk 0:02:54.5]} 10... Nb8 {[%clk 0:02:35.1]} 11. Nce2
{[%clk 0:02:53]} 11... Nc6 {[%clk 0:02:33.5]} 12. O-O {[%clk 0:02:53.5]} 12...
Nd4 {[%clk 0:02:30.3]} 13. Bc1 {[%clk 0:02:40.9]} 13... f6 {[%clk 0:02:24.1]}
14. Nxd4 {[%clk 0:02:39.1]} 14... cxd4 {[%clk 0:02:13.3]} 15. f4 {[%clk
0:02:37.9]} 15... c5 {[%clk 0:01:37.3]} 16. fxe5 {[%clk 0:02:36]} 16... Bxe5
{[%clk 0:01:36.9]} 17. Bf4 {[%clk 0:02:36]} 17... Qd6 {[%clk 0:01:28.2]} 18. Qd2
{[%clk 0:02:09.8]} 18... Bd7 {[%clk 0:01:23.4]} 19. Rf2 {[%clk 0:02:09.6]} 19...
b5 {[%clk 0:01:22.7]} 20. Raf1 {[%clk 0:02:09.3]} 20... a5 {[%clk 0:01:20.5]}
21. Nh5 {[%clk 0:02:03]} 21... Ra6 {[%clk 0:01:09.4]} 22. Bxe5 {[%clk 0:01:49]}
22... Rxe5 {[%clk 0:01:10.3]} 23. Nf4 {[%clk 0:01:35.1]} 23... a4 {[%clk
0:01:02.9]} 24. h3 {[%clk 0:01:27.9]} 24... axb3 {[%clk 0:00:58.3]} 25. axb3
{[%clk 0:01:28.8]} 25... Be6 {[%clk 0:00:56.6]} 26. Qe2 {[%clk 0:01:20.3]} 26...
Ra2 {[%clk 0:00:49.6]} 27. Nh5 {[%clk 0:01:09.8]} 27... Qe7 {[%clk 0:00:36.7]}
28. Qf3 {[%clk 0:00:48.2]} 28... Bf7 {[%clk 0:00:36.5]} 29. Nf4 {[%clk
0:00:43.7]} 29... c4 {[%clk 0:00:34.6]} 30. bxc4 {[%clk 0:00:41]} 30... bxc4
{[%clk 0:00:35.5]} 31. Qg3 {[%clk 0:00:38]} 31... cxd3 {[%clk 0:00:26.9]} 32.
cxd3 {[%clk 0:00:38.9]} 32... Rxf2 {[%clk 0:00:23.8]} 33. Rxf2 {[%clk
0:00:37.1]} 33... h6 {[%clk 0:00:23]} 34. h4 {[%clk 0:00:26.1]} 34... f5 {[%clk
0:00:19.7]} 35. exf5 {[%clk 0:00:18.7]} 35... Rxf5 {[%clk 0:00:20.6]} 36. Qg4
{[%clk 0:00:15.6]} 36... Rf6 {[%clk 0:00:14.8]} 37. Kh2 {[%clk 0:00:13.9]} 37...
Qe5 {[%clk 0:00:13.9]} 38. Qg3 {[%clk 0:00:14.1]} 38... Kh7 {[%clk 0:00:13.5]}
39. Rf3 {[%clk 0:00:12.7]} 39... Be8 {[%clk 0:00:11.7]} 40. Nh3 {[%clk
0:00:10.6]} 40... Qe6 {[%clk 0:00:10.4]} 41. Rxf6 {[%clk 0:00:09]} 41... Qxf6
{[%clk 0:00:11.3]} 42. Nf4 {[%clk 0:00:09.3]} 42... Bc6 {[%clk 0:00:11]} 43. h5
{[%clk 0:00:07.8]} 43... Kg8 {[%clk 0:00:10.1]} 44. Qg4 {[%clk 0:00:06.6]} 44...
Kh7 {[%clk 0:00:07.5]} 45. Ng6 {[%clk 0:00:04.8]} 45... Bd5 {[%clk 0:00:05.3]}
46. Nf4 {[%clk 0:00:04]} 46... Qe5 {[%clk 0:00:05]} 47. Qg6+ {[%clk 0:00:03.2]}
47... Kg8 {[%clk 0:00:05.3]} 48. Qg3 {[%clk 0:00:03.7]} 48... Kh7 {[%clk
0:00:05]} 49. Kg1 {[%clk 0:00:04.1]} 49... Qe3+ {[%clk 0:00:03.1]} 50. Qxe3
{[%clk 0:00:03.9]} 50... dxe3 {[%clk 0:00:03.3]} 51. Nxd5 {[%clk 0:00:04.4]}
51... e2 {[%clk 0:00:03.8]} 52. Kf2 {[%clk 0:00:04.9]} 52... g6 {[%clk
0:00:04.7]} 53. hxg6+ {[%clk 0:00:05.2]} 53... Kxg6 {[%clk 0:00:04.8]} 54. Kxe2
{[%clk 0:00:05.8]} 54... Kg5 {[%clk 0:00:04.7]} 55. Kf3 {[%clk 0:00:06]} 55...
Kf5 {[%clk 0:00:04.8]} 56. Ne3+ {[%clk 0:00:06.3]} 56... Ke5 {[%clk 0:00:05.7]}
57. Ng4+ {[%clk 0:00:06.8]} 57... Kd4 {[%clk 0:00:06.6]} 58. Nxh6 {[%clk
0:00:07.6]} 58... Kxd3 {[%clk 0:00:07.4]} 59. Kf4 {[%clk 0:00:08.5]} 59... Kd4
{[%clk 0:00:08.3]} 60. Kf5 {[%clk 0:00:09.1]} 60... Kd5 {[%clk 0:00:09.2]} 61.
Kf6 {[%clk 0:00:09.6]} 61... Kd6 {[%clk 0:00:10.1]} 62. g4 {[%clk 0:00:10.1]}
62... Kd7 {[%clk 0:00:10.3]} 63. Kf7 {[%clk 0:00:10.5]} 1-0

[Event "*** Titled Tuesday Blitz"]
[Site "Chess.com"]
[Date "2020.05.19"]
[Round "6"]
[White "davidkalashian"]
[Black "Rsnr"]
[Result "1/2-1/2"]
[WhiteElo "2614"]
[BlackElo "2830"]
[TimeControl "180+1"]
[EndTime "13:10:14 PDT"]
[Termination "Game drawn - insufficient material"]

1. e4 {[%clk 0:03:00.9]} 1... c6 {[%clk 0:03:00.1]} 2. d4 {[%clk 0:03:00.2]}
2... d5 {[%clk 0:03:01]} 3. Nc3 {[%clk 0:03:00.5]} 3... dxe4 {[%clk 0:03:01.2]}
4. Nxe4 {[%clk 0:03:01.4]} 4... Bf5 {[%clk 0:03:01.9]} 5. Ng3 {[%clk 0:03:01.3]}
5... Bg6 {[%clk 0:03:01.8]} 6. h4 {[%clk 0:03:01.9]} 6... h6 {[%clk 0:03:02.1]}
7. Nf3 {[%clk 0:03:02.1]} 7... e6 {[%clk 0:03:02.4]} 8. h5 {[%clk 0:03:00.9]}
8... Bh7 {[%clk 0:03:02.5]} 9. Bd3 {[%clk 0:03:01.3]} 9... Bxd3 {[%clk
0:03:03.1]} 10. Qxd3 {[%clk 0:03:02]} 10... Nf6 {[%clk 0:03:04]} 11. Bf4 {[%clk
0:03:01.2]} 11... c5 {[%clk 0:03:04.3]} 12. O-O-O {[%clk 0:02:54]} 12... Nc6
{[%clk 0:02:49.4]} 13. Rhe1 {[%clk 0:02:12.2]} 13... cxd4 {[%clk 0:02:38.8]} 14.
Nxd4 {[%clk 0:02:10.8]} 14... Qxd4 {[%clk 0:02:34.5]} 15. Qxd4 {[%clk
0:02:10.4]} 15... Nxd4 {[%clk 0:02:35.4]} 16. Rxd4 {[%clk 0:02:10.5]} 16... Bc5
{[%clk 0:02:36.3]} 17. Rd2 {[%clk 0:02:06.8]} 17... Rd8 {[%clk 0:02:35.3]} 18.
Rxd8+ {[%clk 0:02:01.8]} 18... Kxd8 {[%clk 0:02:36.2]} 19. Be3 {[%clk
0:01:57.7]} 19... Bd6 {[%clk 0:02:17.3]} 20. Bxa7 {[%clk 0:01:56.2]} 20... Bxg3
{[%clk 0:02:17.3]} 21. fxg3 {[%clk 0:01:57.1]} 21... Nxh5 {[%clk 0:02:18.2]} 22.
Bf2 {[%clk 0:01:53.1]} 22... Nf6 {[%clk 0:02:17.6]} 23. Bd4 {[%clk 0:01:51.6]}
23... Ke7 {[%clk 0:02:15.4]} 24. a4 {[%clk 0:01:48]} 24... Ra8 {[%clk
0:02:03.6]} 25. b3 {[%clk 0:01:47.4]} 25... h5 {[%clk 0:01:52.3]} 26. Kb2 {[%clk
0:01:46.3]} 26... Ng4 {[%clk 0:01:46.1]} 27. c4 {[%clk 0:01:41.7]} 27... f6
{[%clk 0:01:38.3]} 28. Rd1 {[%clk 0:01:35.7]} 28... e5 {[%clk 0:01:24.2]} 29.
Bc5+ {[%clk 0:01:35.1]} 29... Ke8 {[%clk 0:01:24.8]} 30. Rd6 {[%clk 0:01:30.8]}
30... Rc8 {[%clk 0:01:19.8]} 31. b4 {[%clk 0:01:26.5]} 31... Nh6 {[%clk
0:01:19.6]} 32. Rb6 {[%clk 0:00:52.5]} 32... Rc7 {[%clk 0:01:19.6]} 33. a5
{[%clk 0:00:44.1]} 33... Nf5 {[%clk 0:01:17.5]} 34. Kb3 {[%clk 0:00:35.3]} 34...
Kd7 {[%clk 0:01:14]} 35. Bf2 {[%clk 0:00:31]} 35... e4 {[%clk 0:01:10.1]} 36. b5
{[%clk 0:00:30.4]} 36... e3 {[%clk 0:01:08.6]} 37. Be1 {[%clk 0:00:30.8]} 37...
Nd6 {[%clk 0:01:01.5]} 38. a6 {[%clk 0:00:25.4]} 38... bxa6 {[%clk 0:00:53.4]}
39. bxa6 {[%clk 0:00:20]} 39... Nxc4 {[%clk 0:00:46.4]} 40. Rb7 {[%clk
0:00:15.3]} 40... Nd6 {[%clk 0:00:47]} 41. Rxc7+ {[%clk 0:00:11.2]} 41... Kxc7
{[%clk 0:00:47.9]} 42. Kc3 {[%clk 0:00:10.5]} 42... Kb6 {[%clk 0:00:36.4]} 43.
Kd4 {[%clk 0:00:10.8]} 43... Nf5+ {[%clk 0:00:37]} 44. Ke4 {[%clk 0:00:10.8]}
44... g6 {[%clk 0:00:37.2]} 45. Bc3 {[%clk 0:00:09.7]} 45... Nxg3+ {[%clk
0:00:12.9]} 46. Kxe3 {[%clk 0:00:09]} 46... f5 {[%clk 0:00:13.8]} 47. Be1 {[%clk
0:00:06.5]} 47... Ne4 {[%clk 0:00:14]} 48. Kd4 {[%clk 0:00:06.3]} 48... Kxa6
{[%clk 0:00:14.2]} 49. Ke5 {[%clk 0:00:06.8]} 49... Kb5 {[%clk 0:00:14.5]} 50.
Ke6 {[%clk 0:00:07.3]} 50... f4 {[%clk 0:00:07.9]} 51. Kf7 {[%clk 0:00:07.5]}
51... g5 {[%clk 0:00:08]} 52. Kg6 {[%clk 0:00:08]} 52... Kc4 {[%clk 0:00:07.6]}
53. Kxh5 {[%clk 0:00:07.3]} 53... Kd5 {[%clk 0:00:07.1]} 54. Kg4 {[%clk
0:00:07.6]} 54... Ke5 {[%clk 0:00:06.6]} 55. g3 {[%clk 0:00:07.9]} 55... Nd6
{[%clk 0:00:02]} 56. gxf4+ {[%clk 0:00:07.3]} 56... gxf4 {[%clk 0:00:02.9]} 57.
Bd2 {[%clk 0:00:07.1]} 57... f3 {[%clk 0:00:03.3]} 58. Kxf3 {[%clk 0:00:06.4]}
1/2-1/2

[Event "*** Titled Tuesday Blitz"]
[Site "Chess.com"]
[Date "2020.05.19"]
[Round "6"]
[White "alenee"]
[Black "Shubinkirill2003"]
[Result "1/2-1/2"]
[WhiteElo "2432"]
[BlackElo "2570"]
[TimeControl "180+1"]
[EndTime "13:10:15 PDT"]
[Termination "Game drawn - insufficient material"]

1. e4 {[%clk 0:03:00.9]} 1... e6 {[%clk 0:03:00.9]} 2. d4 {[%clk 0:03:00]} 2...
d5 {[%clk 0:03:00.9]} 3. exd5 {[%clk 0:02:59.2]} 3... exd5 {[%clk 0:03:00.9]} 4.
Nf3 {[%clk 0:02:58.8]} 4... Nc6 {[%clk 0:03:00.7]} 5. Bd3 {[%clk 0:02:58.9]}
5... Nge7 {[%clk 0:03:00.3]} 6. O-O {[%clk 0:02:57.9]} 6... Bg4 {[%clk
0:02:59.9]} 7. c3 {[%clk 0:02:57]} 7... Qd7 {[%clk 0:02:59.1]} 8. b4 {[%clk
0:02:55.8]} 8... Ng6 {[%clk 0:02:58.2]} 9. Re1+ {[%clk 0:02:53.4]} 9... Be7
{[%clk 0:02:57.3]} 10. b5 {[%clk 0:02:53.3]} 10... Nd8 {[%clk 0:02:56]} 11. Ba3
{[%clk 0:02:52.7]} 11... Ne6 {[%clk 0:02:48.6]} 12. Bxe7 {[%clk 0:02:44.9]}
12... Qxe7 {[%clk 0:02:43.1]} 13. h3 {[%clk 0:02:37.9]} 13... Bxf3 {[%clk
0:02:39.2]} 14. Qxf3 {[%clk 0:02:38.3]} 14... Rd8 {[%clk 0:02:24.4]} 15. Nd2
{[%clk 0:02:23.1]} 15... O-O {[%clk 0:02:23.6]} 16. Qg3 {[%clk 0:02:16.7]} 16...
Qd6 {[%clk 0:02:13.1]} 17. Nf1 {[%clk 0:01:52.8]} 17... Nef4 {[%clk 0:01:58.9]}
18. Bc2 {[%clk 0:01:40.1]} 18... Rfe8 {[%clk 0:01:55.9]} 19. Ne3 {[%clk
0:01:39.3]} 19... c6 {[%clk 0:01:46.2]} 20. a4 {[%clk 0:01:37.4]} 20... c5
{[%clk 0:01:40]} 21. Bxg6 {[%clk 0:01:28]} 21... hxg6 {[%clk 0:01:36]} 22. dxc5
{[%clk 0:01:27.1]} 22... Qc7 {[%clk 0:01:33.4]} 23. Rad1 {[%clk 0:01:17.3]}
23... Re4 {[%clk 0:01:21.6]} 24. Kh2 {[%clk 0:00:45.5]} 24... Qxc5 {[%clk
0:01:08.1]} 25. Nc2 {[%clk 0:00:27.8]} 25... Rxe1 {[%clk 0:01:01.7]} 26. Rxe1
{[%clk 0:00:28.3]} 26... Ne6 {[%clk 0:00:58.3]} 27. Qe5 {[%clk 0:00:25]} 27...
Rc8 {[%clk 0:00:52.7]} 28. Nd4 {[%clk 0:00:23.7]} 28... Nf8 {[%clk 0:00:33.1]}
29. Nf3 {[%clk 0:00:20]} 29... f6 {[%clk 0:00:22.3]} 30. Qe7 {[%clk 0:00:17.2]}
30... Qc7+ {[%clk 0:00:19.2]} 31. Qxc7 {[%clk 0:00:16.4]} 31... Rxc7 {[%clk
0:00:20.1]} 32. Rd1 {[%clk 0:00:16.4]} 32... Rxc3 {[%clk 0:00:17.7]} 33. Rxd5
{[%clk 0:00:15.9]} 33... Rc4 {[%clk 0:00:17.3]} 34. Rd4 {[%clk 0:00:16.3]} 34...
Rxd4 {[%clk 0:00:17.6]} 35. Nxd4 {[%clk 0:00:16.6]} 35... Kf7 {[%clk 0:00:18.5]}
36. Kg3 {[%clk 0:00:16.2]} 36... Nd7 {[%clk 0:00:18.2]} 37. Kf4 {[%clk
0:00:15.8]} 37... Nc5 {[%clk 0:00:18.1]} 38. a5 {[%clk 0:00:15.6]} 38... a6
{[%clk 0:00:14.9]} 39. bxa6 {[%clk 0:00:15.1]} 39... bxa6 {[%clk 0:00:15.8]} 40.
Nc6 {[%clk 0:00:15.6]} 40... Ke6 {[%clk 0:00:12.2]} 41. Nb4 {[%clk 0:00:15.9]}
41... Nb3 {[%clk 0:00:11.9]} 42. Nxa6 {[%clk 0:00:14.5]} 42... Nxa5 {[%clk
0:00:10.9]} 43. Nc5+ {[%clk 0:00:15.2]} 43... Kf7 {[%clk 0:00:10.8]} 44. Ne4
{[%clk 0:00:16.1]} 44... Nc6 {[%clk 0:00:10.4]} 45. g4 {[%clk 0:00:16.1]} 45...
g5+ {[%clk 0:00:10.1]} 46. Kf3 {[%clk 0:00:14.7]} 46... Ne5+ {[%clk 0:00:08.9]}
47. Kg3 {[%clk 0:00:13.5]} 47... Kg6 {[%clk 0:00:09.2]} 48. f4 {[%clk
0:00:13.7]} 48... gxf4+ {[%clk 0:00:08.8]} 49. Kxf4 {[%clk 0:00:13.1]} 49... Nf7
{[%clk 0:00:09.7]} 50. Ng3 {[%clk 0:00:12.3]} 50... Kh7 {[%clk 0:00:09.3]} 51.
h4 {[%clk 0:00:12.3]} 51... g6 {[%clk 0:00:08.6]} 52. h5 {[%clk 0:00:11.9]}
52... Kg7 {[%clk 0:00:08.7]} 53. hxg6 {[%clk 0:00:10.7]} 53... Kxg6 {[%clk
0:00:09.5]} 54. Nh5 {[%clk 0:00:11.3]} 54... Ng5 {[%clk 0:00:09.5]} 55. Nxf6
{[%clk 0:00:11.8]} 55... Kxf6 {[%clk 0:00:09.3]} 56. Kg3 {[%clk 0:00:11.6]}
56... Ne6 {[%clk 0:00:09.5]} 57. Kh4 {[%clk 0:00:12.2]} 57... Kg6 {[%clk
0:00:09.9]} 58. g5 {[%clk 0:00:12.9]} 58... Nxg5 {[%clk 0:00:10.2]} 1/2-1/2